{"text_format":"1","workbook":"xlsx","n_sheets":2,"sheets":["Tabelle1","Tabelle2"],"not_rendered":{"charts":0,"images":0,"macros":1,"external_links":0,"defined_names":0,"comments":0,"pivot_tables":0},"unopened":[],"bounds":{"document_bytes":16777216,"sheet_cells":100000,"rows_first":2000,"rows_last":500,"rows_between":2000,"halvings":0,"cell_chars":16384,"cell_head_chars":4096},"cells_cut":0,"cells_raw":0,"read":"whole","date_system":"1900"}

{"sheet":"Tabelle1","index":0,"n_rows":8,"n_cols":14,"rows_kept":8,"cut":false,"hidden":false,"merged":[]}
["Spalte 1","Spalte 2","Spalte 3","Spalte 4","Spalte 5","Spalte 6","Spalte 7","Spalte 8","Spalte 9","Spalte 10","Spalte 11","Spalte 12","Spalte 13","Spalte 14"]
[{"$f":"INDEX($1:$1,COLUMN(A1)+(ROW(A1)-1)*3)","v":"Spalte 1"},{"$f":"INDEX($1:$1,COLUMN(B1)+(ROW(B1)-1)*3)","v":"Spalte 2"},"Spalte 3"]
[{"$f":"INDEX($1:$1,COLUMN(A2)+(ROW(A2)-1)*3)","v":"Spalte 4"},{"$f":"INDEX($1:$1,COLUMN(B2)+(ROW(B2)-1)*3)","v":"Spalte 5"},{"$f":"INDEX($1:$1,COLUMN(C2)+(ROW(C2)-1)*3)","v":"Spalte 6"}]
["Spalte 7","Spalte 8","Spalte 9"]
["Spalte 10","Spalte 11","Spalte 12"]
["Spalte 13","Spalte 14",0]
[0,0,0]
[0,0,0]

{"sheet":"Tabelle2","index":1,"n_rows":22,"n_cols":14,"rows_kept":22,"cut":false,"hidden":false,"merged":[]}
["Spalte 1","Spalte 2","Spalte 3","Spalte 4","Spalte 5","Spalte 6","Spalte 7","Spalte 8","Spalte 9","Spalte 10","Spalte 11","Spalte 12","Spalte 13","Spalte 14"]
[]
[]
[]
[]
[]
[]
[]
[]
[]
[]
[]
[]
[]
[]
[]
[]
["Spalte 1","Spalte 2","Spalte 3"]
["Spalte 1","Spalte 2","Spalte 3"]
["Spalte 7","Spalte 8","Spalte 9"]
["Spalte 10","Spalte 11","Spalte 12"]
["Spalte 13","Spalte 14"]